bitfinex/quotes_SOLUSD_20240917
["timestamp","ask_amount","ask_price","bid_price","bid_amount"]
[1726539335280,23.776884,130.91,130.86,6.1907]
[1726539335499,23.776884,130.92,130.86,6.1907]
[1726539339483,43.776884,130.93,130.87,15.2788]
[1726539340874,51.414584,130.93,130.87,15.2788]
[1726539341588,7.6382,130.92,130.87,15.2788]
[1726539341971,23.776884,130.91,130.87,15.2788]
[1726539346596,23.776884,130.92,130.87,15.2788]
[1726539346890,7.6366,130.95,130.87,15.2788]
[1726539347075,7.6366,130.95,130.88,14.28051401]
[1726539348090,43.776884,130.94,130.88,14.28051401]
[1726539349190,43.776884,130.94,130.87,15.2788]
[1726539354685,43.776884,130.94,130.87,29.55931401]
[1726539355880,51.414284,130.94,130.87,15.2788]
[1726539356200,66.756884,130.94,130.87,15.2788]
[1726539356580,23.776884,130.9,130.87,15.2788]
[1726539360517,7.64,130.89,130.87,15.2788]
[1726539360702,7.64,130.89,130.84,15.9676]
[1726539360703,23.776884,130.88,130.84,15.9676]
[1726539366389,23.776884,130.89,130.84,15.9676]
[1726539375691,31.416884,130.89,130.84,15.9676]
[1726539382516,20.0,130.88,130.84,15.9676]
[1726539382723,31.418084,130.87,130.84,15.9676]
[1726539382921,23.776884,130.87,130.84,15.9676]
[1726539399038,31.418084,130.87,130.84,15.9676]
[1726539399336,20.0,130.88,130.83,0.258097]
[1726539399337,23.776884,130.85,130.83,0.258097]
[1726539399928,31.419184,130.85,130.83,0.258097]
[1726539400718,23.776884,130.85,130.83,0.258097]
[1726539401321,23.776884,130.86,130.83,0.258097]
[1726539404845,50.6208,130.88,130.83,0.258097]
[1726539405037,23.776884,130.85,130.83,0.258097]
[1726539416033,31.419184,130.85,130.83,0.258097]
[1726539416644,7.6429,130.84,130.83,0.258097]
[1726539417033,31.419784,130.84,130.83,0.258097]
[1726539420841,51.419784,130.84,130.83,0.258097]
[1726539421052,74.399784,130.84,130.83,0.258097]
[1726539424933,27.6429,130.84,130.83,0.258097]
[1726539425357,50.6229,130.84,130.83,0.258097]
[1726539426239,74.399784,130.84,130.83,0.258097]
[1726539437243,51.419784,130.84,130.83,0.258097]
[1726539437447,27.6429,130.84,130.83,0.258097]
[1726539438966,51.419784,130.84,130.83,0.258097]
[1726539439267,74.399784,130.84,130.83,0.258097]
[1726539439467,51.419784,130.84,130.83,0.258097]
[1726539442245,74.399784,130.84,130.83,0.258097]
[1726539444972,43.776884,130.84,130.83,0.258097]
[1726539447780,51.419784,130.84,130.83,0.258097]
[1726539449060,43.776884,130.84,130.83,0.258097]
[1726539451776,23.776884,130.84,130.83,0.258097]
[1726539458986,20.0,130.87,130.83,0.258097]
[1726539459278,6.0054,130.93,130.84,29.44261401]
[1726539459477,19.0939,130.94,130.84,29.44261401]
[1726539459855,22.98,130.93,130.84,29.44261401]
[1726539460059,7.6383,130.92,130.84,29.44261401]
[1726539460256,7.00031666,130.95,130.87,14.28051401]
[1726539460460,7.6369,130.95,130.88,36.95751401]
[1726539461065,7.893397,130.97,130.88,36.95751401]
[1726539461283,7.893397,130.97,130.9,14.28051401]
[1726539461461,0.258097,130.97,130.9,14.28051401]
[1726539461665,0.258097,130.97,130.91,14.28051401]
[1726539461870,0.258097,130.97,130.92,30.54871401]
[1726539462163,0.258097,130.97,130.94,6.1327]
[1726539463582,0.258097,130.97,130.96,14.28051401]
[1726539463957,0.258097,130.97,130.94,20.41321401]
[1726539469384,0.258097,130.97,130.95,14.28051401]
[1726539470683,0.258097,130.97,130.96,14.28051401]
[1726539470895,0.258097,130.97,130.96,14.93003551]
[1726539471071,0.258097,130.97,130.96,14.28051401]
[1726539471280,0.258097,130.97,130.96,49.97728732]
[1726539471666,0.258097,131.01,130.97,20.0]
[1726539471888,0.258097,131.01,131.0,20.44221401]
[1726539472564,0.258097,131.01,131.0,35.48771401]
[1726539472994,0.258097,131.05,131.0,65.48771401]
[1726539473172,0.258097,131.05,131.02,14.28051401]
[1726539475570,0.258097,131.05,131.0,51.2072]
[1726539475877,0.258097,131.05,131.02,14.28051401]
[1726539478591,0.258097,131.05,131.04,14.28051401]
[1726539479590,0.258097,131.05,131.04,15.80642429]
[1726539479769,0.258097,131.05,131.04,1.52591028]
[1726539479972,0.258097,131.05,131.02,44.28051401]
[1726539480489,0.258097,131.05,131.03,14.28051401]
[1726539484195,0.258097,131.05,131.02,20.0]
[1726539489582,0.258097,131.05,131.03,14.28051401]
[1726539497416,0.258097,131.05,131.01,34.28051401]
[1726539498290,0.258097,131.05,131.0,21.2072]
[1726539499412,0.258097,131.05,131.0,15.0455]
[1726539501414,0.258097,131.05,131.03,14.28051401]
[1726539501719,0.258097,131.05,131.04,14.28051401]
[1726539502587,0.258097,131.05,131.04,15.80591863]
[1726539503818,0.258097,131.05,131.04,14.28051401]
[1726539504694,0.258097,131.05,131.04,64.28051401]
[1726539505391,0.258097,131.05,131.04,80.84974779]
[1726539505592,0.258097,131.09,131.05,20.0]
[1726539505794,0.258097,131.09,131.08,14.28051401]
[1726539506217,0.258097,131.09,131.08,34.28051401]
[1726539507593,0.258097,131.09,131.08,64.28051401]
[1726539508720,0.258097,131.09,131.08,50.0]
[1726539509217,0.258097,131.09,131.08,30.0]
[1726539511589,0.258097,131.09,131.07,20.40901401]
[1726539512924,0.258097,131.09,131.08,51.52514132]
[1726539513215,0.258097,131.09,131.08,65.80565533]
[1726539514703,0.258097,131.09,131.08,64.28051401]
[1726539520004,0.258097,131.09,131.08,65.80519762]
[1726539520325,0.258097,131.13,131.08,65.80519762]
[1726539520326,0.258097,131.13,131.09,20.0]
[1726539520641,0.258097,131.13,131.12,14.28051401]
[1726539521317,0.258097,131.13,131.11,14.28051401]
[1726539522033,0.258097,131.13,131.09,14.28051401]
[1726539529611,0.258097,131.13,131.11,14.28051401]
[1726539530133,0.258097,131.13,131.09,14.28051401]
[1726539530504,0.258097,131.13,131.08,20.0]
[1726539530710,0.258097,131.13,131.09,30.0]
[1726539531621,0.258097,131.13,131.07,14.28051401]
[1726539533437,0.258097,131.13,131.1,14.28051401]
[1726539535617,0.258097,131.13,131.11,14.28051401]
[1726539536039,0.258097,131.13,131.1,14.28051401]
[1726539536215,0.258097,131.13,131.09,14.28051401]
[1726539537741,0.258097,131.13,131.1,14.28051401]
[1726539541038,0.258097,131.13,131.11,14.28051401]
[1726539541538,0.258097,131.13,131.1,14.28051401]
[1726539548023,0.258097,131.13,131.06,3.82818218]
[1726539548228,0.258097,131.13,131.09,14.28051401]
[1726539551852,0.258097,131.13,131.09,18.10859124]
[1726539554454,0.258097,131.13,131.1,14.28051401]
[1726539558232,0.258097,131.13,131.11,14.28051401]
[1726539560048,0.258097,131.13,131.1,14.28051401]
[1726539564046,0.258097,131.13,131.05,20.0]
[1726539564258,0.258097,131.13,131.08,14.28051401]
[1726539565031,0.258097,131.13,131.07,20.0]
[1726539565233,0.258097,131.13,131.08,30.0]
[1726539566431,0.258097,131.13,131.08,44.28051401]
[1726539566957,0.258097,131.13,131.08,14.28051401]
[1726539568172,0.258097,131.13,131.07,14.28051401]
[1726539568351,0.258097,131.13,131.08,20.0]
[1726539570850,0.258097,131.13,131.08,14.28051401]
[1726539571349,0.258097,131.13,131.09,14.28051401]
[1726539571554,0.258097,131.13,131.1,14.28051401]
[1726539572862,0.258097,131.13,131.11,14.28051401]
[1726539573758,0.258097,131.13,131.12,14.28051401]
[1726539573957,0.258097,131.13,131.12,44.28051401]
[1726539575955,0.258097,131.13,131.12,30.0]
[1726539576153,0.258097,131.13,131.07,14.28051401]
[1726539576355,0.258097,131.13,131.09,14.28051401]
[1726539577739,0.258097,131.13,131.05,15.7829]
[1726539577740,0.258097,131.13,131.1,14.28051401]
[1726539585557,0.258097,131.13,131.11,14.28051401]
[1726539586372,0.258097,131.13,131.1,14.28051401]
[1726539586549,0.258097,131.13,131.09,20.0]
[1726539586870,0.258097,131.13,131.08,14.28051401]
[1726539588666,0.258097,131.13,131.07,14.28051401]
[1726539589049,0.258097,131.13,131.08,20.0]
[1726539589260,0.258097,131.13,131.09,14.28051401]
[1726539589454,0.258097,131.13,131.1,14.28051401]
[1726539595548,24.034981,131.13,131.06,20.0]
[1726539595752,24.034981,131.13,131.06,34.28051401]
[1726539596260,23.776884,131.11,131.03,20.0]
[1726539596461,23.776884,131.11,131.06,20.0]
[1726539597766,23.0434,131.12,131.07,14.28051401]
[1726539601170,23.776884,131.11,131.05,14.28051401]
[1726539601467,23.776884,131.11,131.04,14.28051401]
[1726539601668,23.0434,131.12,131.07,14.28051401]
[1726539606079,0.258097,131.13,131.08,15.80598201]
[1726539606293,0.258097,131.13,131.08,14.28051401]
[1726539606963,16.0507,131.11,131.03,20.0]
[1726539607172,16.0507,131.11,131.02,7.9647516]
[1726539607173,31.404784,131.1,131.02,7.9647516]
[1726539607363,23.776884,131.1,131.01,15.4816]
[1726539607858,31.404884,131.1,131.04,30.0]
[1726539608267,23.776884,131.1,131.0,14.28051401]
[1726539608466,23.776884,131.1,131.01,20.0]
[1726539608768,31.404784,131.1,131.01,20.0]
[1726539610865,23.776884,131.1,131.02,14.28051401]
[1726539611582,31.404584,131.1,131.02,14.28051401]
[1726539612873,31.404584,131.1,131.0,14.28051401]
[1726539613056,31.404584,131.1,131.01,20.0]
[1726539616784,31.404584,131.1,131.02,14.28051401]
[1726539617482,23.776884,131.1,131.03,14.28051401]
[1726539621486,31.404684,131.1,131.03,14.28051401]
[1726539623295,31.404684,131.1,131.02,14.28051401]
[1726539626987,23.776884,131.1,131.02,14.28051401]
[1726539627174,23.776884,131.1,131.03,14.28051401]
[1726539627376,23.776884,131.1,131.04,14.28051401]
[1726539629100,16.0507,131.11,131.07,14.28051401]
[1726539630684,16.0507,131.11,131.09,30.0]
[1726539634996,23.776884,131.1,131.09,30.0]
[1726539635884,51.404584,131.1,131.09,30.0]
[1726539636394,43.776884,131.1,131.0,14.28051401]
[1726539636603,23.776884,131.08,131.02,30.0]
[1726539637487,23.776884,131.09,131.02,44.28051401]
[1726539641307,31.405184,131.09,131.02,44.28051401]
[1726539641913,23.776884,131.09,131.02,44.28051401]
[1726539644307,31.405384,131.09,131.02,44.28051401]
[1726539645807,7.629,131.08,131.02,30.0]
[1726539646012,23.776884,131.07,131.02,30.0]
[1726539646903,23.776884,131.08,131.02,30.0]
[1726539657625,23.776884,131.09,131.03,14.28051401]
[1726539657918,23.776884,131.09,131.05,30.0]
[1726539672315,25.97918628,131.14,131.05,44.28051401]
[1726539672316,20.258097,131.13,131.05,44.28051401]
[1726539673143,20.0,131.11,131.05,44.28051401]
[1726539673307,20.0,131.11,131.05,30.0]
[1726539673707,23.776884,131.1,131.05,44.28051401]
[1726539673915,23.776884,131.1,131.05,50.35681401]
[1726539674831,23.776884,131.1,131.05,36.0763]
[1726539675407,23.776884,131.11,131.05,36.0763]
[1726539677430,31.404184,131.11,131.05,36.0763]
[1726539685018,7.6284,131.09,131.05,36.0763]
[1726539685223,31.405784,131.08,131.05,30.0]
[1726539686430,23.776884,131.08,131.05,30.0]
[1726539692133,23.776884,131.07,131.05,30.0]
[1726539692336,23.776884,131.05,131.0,16.0026]
[1726539692638,31.407784,131.05,131.01,30.0]
[1726539692952,23.776884,131.03,131.01,30.0]
[1726539693147,23.776884,131.03,131.0,16.0026]
[1726539694930,7.6324,131.02,130.99,0.258097]
[1726539695131,23.776884,131.01,130.99,0.258097]
[1726539700730,31.410384,131.0,130.99,0.258097]
[1726539702650,51.410384,131.0,130.99,0.258097]
[1726539709059,43.776884,131.0,130.99,0.258097]
[1726539710454,51.410384,131.0,130.99,0.258097]
[1726539712849,74.370384,131.0,130.99,0.258097]
[1726539731185,82.1352162,131.0,130.99,0.258097]
[1726539733170,82.1352162,131.0,130.95,0.258097]
[1726539733171,7.6353,130.97,130.95,0.258097]
[1726539733469,23.776884,130.96,130.95,0.258097]
[1726539733667,74.372784,130.96,130.95,0.258097]
[1726539746470,20.0,130.96,130.95,0.258097]
[1726539746671,7.6343,130.99,130.95,0.258097]
[1726539747672,30.5936,131.0,130.95,0.258097]
[1726539748689,30.5931,131.01,130.95,0.258097]
[1726539748890,10.20348983,131.03,130.95,0.258097]
[1726539748891,30.5925,131.02,130.95,0.258097]
[1726539749083,22.96,131.01,130.95,0.258097]
[1726539749475,30.5932,131.01,130.95,0.258097]
[1726539749882,23.776884,130.99,130.95,0.258097]
[1726539750794,22.276884,130.99,130.95,0.258097]
[1726539758099,23.776884,131.0,130.95,0.258097]
[1726539760602,54.370484,131.0,130.95,0.258097]
[1726539760805,7.6342,130.99,130.95,0.258097]
[1726539760988,23.776884,130.98,130.95,0.258097]
[1726539761188,31.411684,130.98,130.95,0.258097]
[1726539762982,22.96,130.97,130.95,0.258097]
[1726539763291,31.411684,130.98,130.95,0.258097]
[1726539763292,23.776884,130.96,130.95,0.258097]
[1726539764879,74.372784,130.96,130.95,0.258097]
[1726539789524,7.638,130.93,130.91,0.258097]
[1726539789743,43.776884,130.92,130.91,0.258097]
[1726539799529,51.415084,130.92,130.91,0.258097]
[1726539799933,74.375084,130.92,130.91,0.258097]
[1726539807111,7.6405,130.88,130.87,0.258097]
[1726539807324,74.377384,130.88,130.87,0.258097]
[1726539808220,66.736884,130.88,130.87,0.258097]
[1726539816433,43.776884,130.88,130.87,0.258097]
[1726539817540,74.377384,130.88,130.87,0.258097]
[1726539819428,66.736884,130.88,130.87,0.258097]
[1726539822452,43.776884,130.88,130.87,0.258097]
[1726539833652,7.6384,130.92,130.87,16.457597]
[1726539833864,22.96,130.92,130.87,16.457597]
[1726539834043,35.53288983,130.95,130.87,16.457597]
[1726539834044,10.20348983,130.95,130.87,16.457597]
[1726539834244,7.6374,130.94,130.87,16.457597]
[1726539834469,17.84008983,130.95,130.88,6.1151]
[1726539834766,22.96,130.94,130.88,6.1151]
[1726539835555,20.0,130.93,130.88,6.1151]
[1726539835945,23.776884,130.92,130.88,6.1151]
[1726539840345,31.415184,130.92,130.88,6.1151]
[1726539841554,23.776884,130.92,130.88,6.1151]
[1726539843242,7.636,130.96,130.88,6.1151]
[1726539843447,98.164,131.02,130.88,6.1151]
[1726539843448,7.6354,130.97,130.89,29.66331401]
[1726539843750,7.6354,130.97,130.87,0.258097]
[1726539843751,7.6342,130.99,130.92,16.666]
[1726539843948,17.83718983,131.0,130.92,30.94651401]
[1726539844157,7.6343,130.99,130.92,16.666]
[1726539845056,20.0,130.97,130.92,16.666]
[1726539845261,23.776884,130.96,130.92,16.666]
[1726539852651,23.776884,130.94,130.92,16.666]
[1726539852871,23.776884,130.96,130.92,16.666]
[1726539859262,7.891197,131.01,130.92,30.94651401]
[1726539859458,20.0,131.0,130.93,14.28051401]
[1726539859669,0.258097,131.01,130.96,14.28051401]
[1726539861269,0.258097,131.01,130.97,15.9664]
[1726539862268,0.258097,131.01,130.97,30.24691401]
[1726539863082,0.258097,131.01,130.97,15.9664]
[1726539865186,0.258097,131.01,130.98,6.5175]
[1726539874269,0.258097,131.01,131.0,16.0139]
[1726539878986,0.258097,131.01,131.0,30.29441401]
[1726539882871,0.258097,131.01,131.0,16.0139]
[1726539883068,0.258097,131.01,131.0,30.29441401]
[1726539885491,0.258097,131.01,131.0,60.29441401]
[1726539888795,0.258097,131.01,131.0,30.29441401]
[1726539890066,0.258097,131.01,131.0,16.0139]
[1726539891795,0.258097,131.01,131.0,46.0139]
[1726539898510,0.258097,131.01,131.0,16.0139]
[1726539902804,0.258097,131.01,130.98,20.79801401]
[1726539905788,0.258097,131.01,130.99,30.0]
[1726539909205,0.258097,131.01,130.98,20.79801401]
[1726539909409,0.258097,131.01,130.98,24.62991869]
[1726539910284,0.258097,131.01,130.98,20.79801401]
[1726539910615,0.258097,131.01,130.98,24.6304339]
[1726539911001,0.258097,131.01,130.98,20.79801401]
[1726539912227,0.258097,131.01,130.99,30.0]
[1726539914490,0.258097,131.01,131.0,15.80705669]
[1726539914695,0.258097,131.01,131.0,65.80681007]
[1726539914905,0.258097,131.01,131.0,64.28051401]
[1726539915505,0.258097,131.01,131.0,80.42261401]
[1726539915711,0.258097,131.01,131.0,81.9482796]
[1726539916512,0.258097,131.01,131.0,80.42261401]
[1726539923604,0.258097,131.01,131.0,66.1421]
[1726539923805,0.258097,131.01,131.0,64.28051401]
[1726539924937,0.258097,131.01,131.0,34.28051401]
[1726539925511,0.258097,131.01,131.0,64.28051401]
[1726539934219,0.258097,131.05,131.01,20.0]
[1726539934418,0.258097,131.05,131.04,14.28051401]
[1726539935216,0.258097,131.05,131.01,50.0]
[1726539935420,0.258097,131.05,131.03,44.28051401]
[1726539938606,0.258097,131.05,131.03,14.28051401]
[1726539941532,0.258097,131.05,131.04,30.0]
[1726539942123,0.258097,131.05,131.04,44.28051401]
[1726539942928,0.258097,131.05,131.04,64.28051401]
[1726539945531,0.258097,131.05,131.04,50.0]
[1726539946530,0.258097,131.05,131.04,64.28051401]
[1726539948111,0.258097,131.05,131.04,44.28051401]
[1726539948510,0.258097,131.05,131.04,64.28051401]
[1726539949218,0.258097,131.05,131.04,44.28051401]
[1726539949414,0.258097,131.05,131.04,64.28051401]
[1726539965127,0.258097,131.05,131.04,79.61401401]
[1726539971151,0.258097,131.05,131.04,68.11512615]
[1726539971563,0.258097,131.05,131.04,64.28051401]
[1726539975137,0.258097,131.09,131.05,20.0]
[1726539975335,0.258097,131.09,131.08,14.28051401]
[1726539976348,0.258097,131.09,131.08,44.28051401]
[1726539977930,0.258097,131.09,131.08,30.0]
[1726539978559,15.8241,131.08,131.01,15.4542]
[1726539978863,23.776884,131.07,131.02,33.83533136]
[1726539979039,23.776884,131.07,131.02,30.0]
[1726539979242,23.776884,131.07,131.01,29.73471401]
[1726539980266,23.776884,131.07,131.02,3.83551742]
[1726539980640,23.776884,131.07,131.01,14.28051401]
[1726539982957,23.776884,131.07,131.03,14.28051401]
[1726539983164,15.8241,131.08,131.04,14.28051401]
[1726539985750,15.8241,131.08,131.05,14.28051401]
[1726539986350,6.491397,131.09,131.0,6.4533]
[1726539986351,0.258097,131.09,131.06,15.80568202]
[1726539986552,0.258097,131.09,131.06,14.28051401]
[1726539987648,0.258097,131.09,131.07,14.28051401]
[1726539988961,0.258097,131.09,131.06,14.28051401]
[1726539989163,0.258097,131.09,131.05,14.28051401]
[1726539989363,0.258097,131.09,131.06,20.0]
[1726539990772,0.258097,131.09,131.05,14.28051401]
[1726539992769,0.258097,131.09,131.03,34.28051401]
[1726539992975,0.258097,131.09,131.03,14.28051401]
[1726539996959,30.403884,131.08,131.01,34.28051401]
[1726539997675,30.403884,131.08,131.03,14.28051401]
[1726540004697,30.403884,131.08,131.04,14.28051401]
[1726540009172,0.258097,131.09,131.04,14.28051401]
[1726540009378,0.258097,131.09,131.06,14.28051401]
[1726540015478,24.150654,131.1,131.06,14.28051401]
[1726540016182,0.37377,131.1,131.08,14.28051401]
[1726540017079,0.37377,131.1,131.05,34.28051401]
[1726540021397,0.37377,131.1,131.05,14.28051401]
[1726540030298,0.37377,131.1,131.01,21.4949]
[1726540030503,0.37377,131.1,131.02,64.28051401]
[1726540033476,0.37377,131.1,131.02,34.28051401]
[1726540034001,23.776884,131.09,131.02,34.28051401]
[1726540034390,0.37377,131.1,131.02,34.28051401]
[1726540046414,0.37377,131.1,131.06,14.28051401]
[1726540046903,0.37377,131.1,131.07,14.28051401]
[1726540047905,0.37377,131.1,131.09,14.28051401]
[1726540051213,0.37377,131.1,131.09,34.28051401]
[1726540052102,0.37377,131.1,131.09,38.11344667]
[1726540052296,0.37377,131.1,131.09,34.28051401]
[1726540053098,0.37377,131.1,131.09,50.04091401]
[1726540053515,0.37377,131.1,131.09,53.87362845]
[1726540053816,0.37377,131.1,131.09,50.04091401]
[1726540054111,0.37377,131.1,131.09,83.8735814]
[1726540056518,0.37377,131.1,131.09,80.04091401]
[1726540056811,0.37377,131.1,131.09,83.87296322]
[1726540057213,0.37377,131.1,131.09,80.04091401]
[1726540059908,0.37377,131.1,131.09,50.04091401]
[1726540061524,0.37377,131.1,131.09,80.04091401]
[1726540062714,0.37377,131.1,131.09,50.04091401]
[1726540065793,0.37377,131.1,131.09,80.04091401]
[1726540068921,0.2526364,131.14,131.1,20.0]
[1726540069119,0.2526364,131.14,131.13,14.28051401]
[1726540069638,0.2526364,131.14,131.13,34.28051401]
[1726540072495,0.2526364,131.14,131.13,64.28051401]
[1726540073601,0.2526364,131.14,131.13,34.28051401]
[1726540075526,0.2526364,131.14,131.13,64.28051401]
[1726540079221,0.2526364,131.14,131.13,30.0]
[1726540079411,0.2526364,131.14,131.1,34.28051401]
[1726540079732,0.2526364,131.14,131.12,20.0]
[1726540080510,0.2526364,131.14,131.1,14.28051401]
[1726540080511,0.2526364,131.14,131.11,20.0]
[1726540083426,0.2526364,131.14,131.12,14.28051401]
[1726540085616,0.2526364,131.14,131.1,20.0]
[1726540085814,0.2526364,131.14,131.12,20.0]
[1726540088015,0.2526364,131.14,131.11,14.28051401]
[1726540088227,0.2526364,131.14,131.09,14.28051401]
[1726540089334,0.2526364,131.14,131.05,16.2826]
[1726540089635,0.2526364,131.14,131.09,20.0]
[1726540089825,0.2526364,131.14,131.07,20.0]
[1726540090138,0.2526364,131.14,131.09,20.0]
[1726540097708,0.2526364,131.14,131.08,14.28051401]
[1726540097912,0.2526364,131.14,131.08,20.0]
[1726540103647,0.2526364,131.14,131.05,16.2826]
[1726540103648,23.776884,131.12,131.05,30.56311401]
[1726540104923,23.776884,131.12,131.06,20.0]
[1726540106037,23.776884,131.12,131.05,30.56311401]
[1726540107236,23.776884,131.1,131.03,6.1152]
[1726540107413,23.776884,131.1,131.04,20.0]
[1726540107618,23.776884,131.1,131.04,34.28051401]
[1726540114938,23.776884,131.1,131.03,14.28051401]
[1726540115522,23.776884,131.1,131.04,20.0]
[1726540126069,23.776884,131.1,131.01,16.6878364]
[1726540126241,23.776884,131.1,131.04,14.28051401]
[1726540136664,23.776884,131.1,131.03,34.28051401]
[1726540138650,23.776884,131.1,131.02,30.0]
[1726540138859,23.776884,131.06,131.01,0.2526364]
[1726540145147,22.443,131.09,131.01,14.53315041]
[1726540145361,22.443,131.09,131.03,14.28051401]
[1726540146961,22.443,131.09,131.01,0.2526364]
[1726540147266,22.443,131.09,131.03,14.28051401]
[1726540147447,23.776884,131.08,131.03,14.28051401]
[1726540148283,23.776884,131.08,131.01,30.2526364]
[1726540148284,23.776884,131.08,131.02,20.0]
[1726540148460,23.776884,131.08,131.03,14.28051401]
[1726540150554,23.776884,131.08,131.04,14.28051401]
[1726540151975,23.776884,131.08,131.01,20.2526364]
[1726540152180,23.776884,131.08,131.03,14.28051401]
[1726540155555,23.776884,131.08,131.01,0.2526364]
[1726540155875,23.776884,131.08,131.02,14.28051401]
[1726540156248,23.776884,131.08,131.01,30.2526364]
[1726540156574,23.776884,131.08,131.02,14.28051401]
[1726540156763,23.776884,131.08,131.01,14.53315041]
[1726540170486,31.405784,131.08,131.01,14.53315041]
[1726540171188,23.776884,131.08,131.01,14.53315041]
[1726540181305,31.405784,131.08,131.01,14.53315041]
[1726540186888,7.6296,131.07,131.01,14.53315041]
[1726540187214,23.776884,131.06,131.01,0.2526364]
[1726540188400,31.406984,131.06,131.01,0.2526364]
[1726540194315,23.776884,131.04,131.01,0.2526364]
[1726540200391,31.408184,131.04,131.01,0.2526364]
[1726540201820,7.6319,131.03,131.01,0.2526364]
[1726540202019,23.776884,131.02,131.01,0.2526364]
[1726540202215,31.409284,131.02,131.01,0.2526364]
[1726540202424,23.776884,131.02,131.01,0.2526364]
[1726540205928,22.7423,131.05,131.01,0.2526364]
[1726540206236,23.776884,131.04,131.01,0.2526364]
[1726540206805,22.7423,131.05,131.01,0.2526364]
[1726540207224,16.5751,131.05,131.01,0.2526364]
[1726540208310,23.776884,131.04,131.01,0.2526364]
[1726540209227,43.776884,131.07,131.01,14.53315041]
[1726540209629,20.0,131.07,131.02,14.28051401]
[1726540210936,23.776884,131.06,131.02,14.28051401]
[1726540211434,23.776884,131.07,131.02,14.28051401]
[1726540212616,23.776884,131.07,131.01,14.53315041]
[1726540213143,31.406484,131.07,131.01,0.2526364]
[1726540213655,23.776884,131.05,131.01,0.2526364]
[1726540219212,23.776884,131.03,131.01,0.2526364]
[1726540223128,51.409284,131.02,131.01,0.2526364]
[1726540225131,43.776884,131.02,131.01,0.2526364]
[1726540229944,23.776884,131.02,131.01,0.2526364]
[1726540230516,31.409284,131.02,131.01,0.2526364]
[1726540231218,51.409284,131.02,131.01,0.2526364]
[1726540242640,43.776884,131.02,131.01,0.2526364]
[1726540242848,20.0,131.02,131.01,0.2526364]
[1726540243144,7.6314,131.04,131.01,0.2526364]
[1726540243922,7.6318,131.03,131.01,0.2526364]
[1726540244529,22.95,131.06,131.01,0.2526364]
[1726540244530,23.776884,131.02,131.01,0.2526364]
[1726540246049,31.409284,131.02,131.01,0.2526364]
[1726540246344,51.409284,131.02,131.01,0.2526364]
[1726540252823,74.359284,131.02,131.01,0.2526364]
[1726540264649,50.5824,131.02,131.01,0.2526364]
[1726540265558,27.6324,131.02,131.01,0.2526364]
[1726540265764,51.409284,131.02,131.01,0.2526364]
[1726540266063,27.6324,131.02,131.01,0.2526364]
[1726540267339,43.776884,131.02,131.01,0.2526364]
[1726540282562,7.6308,131.05,131.01,0.2526364]
[1726540282763,31.82535201,131.07,131.01,0.2526364]
[1726540282764,8.85535201,131.07,131.01,0.2526364]
[1726540282988,7.6299,131.07,131.01,0.2526364]
[1726540284160,7.629,131.08,131.01,0.2526364]
[1726540284358,0.9,131.09,131.02,22.6333]
[1726540285281,8.5287,131.09,131.02,22.6333]
[1726540286088,23.776884,131.08,131.02,52.6333]
[1726540310012,31.405884,131.08,131.02,52.6333]
[1726540310299,23.776884,131.06,131.02,52.6333]
[1726540314581,23.776884,131.07,131.02,52.6333]
[1726540314786,23.776884,131.08,131.02,52.6333]
[1726540315894,23.776884,131.08,131.02,66.91381401]
[1726540319982,20.0,131.1,131.03,16.3124]
[1726540320188,31.82535201,131.13,131.03,60.59291401]
[1726540320189,27.6268,131.12,131.03,60.59291401]
[1726540320614,7.6272,131.11,131.03,60.59291401]
[1726540321616,23.776884,131.1,131.03,60.59291401]
[1726540323004,23.776884,131.1,131.04,22.648]
[1726540323312,23.776884,131.1,131.04,52.648]
[1726540328511,31.404684,131.1,131.04,66.92851401]